fUSD/lending_fUSD_20250215
["ID","MTS","AMOUNT","RATE_DAILY","PERIOD"]
[353136430,1739593848089,-502.26084161,0.00011079,2]
[353136431,1739593848099,-500.0,0.00011079,2]
[353136432,1739593848109,-500.0,0.00011079,2]
[353136433,1739593848119,-500.0,0.00011079,2]
[353136434,1739593848129,-500.0,0.00011079,2]
[353136435,1739593848140,-500.0,0.00011079,2]
[353136436,1739593848150,-500.0,0.00011079,2]
[353136437,1739593848160,-500.0,0.00011079,2]
[353136438,1739593848170,-500.0,0.00011079,2]
[353136439,1739593848180,-500.0,0.00011079,2]
[353136440,1739593848190,-500.0,0.00011079,2]
[353136441,1739593848200,-500.0,0.00011079,2]
[353136442,1739593848210,-500.0,0.00011079,2]
[353136443,1739593848221,-500.0,0.00011079,2]
[353136444,1739593848231,-500.0,0.00011079,2]
[353136445,1739593848242,-500.0,0.00011079,2]
[353136446,1739593848252,-500.0,0.00011079,2]
[353136447,1739593848263,-511.33423952,0.00011079,2]
[353136448,1739593848273,-500.0,0.00011079,2]
[353136449,1739593848283,-502.86936784,0.00011079,2]
[353136450,1739593848293,-500.0,0.00011079,2]
[353136451,1739593848304,-500.0,0.00011079,2]
[353136452,1739593848314,-500.0,0.00011079,2]
[353136453,1739593848325,-505.19088532,0.00011079,2]
[353136454,1739593848335,-500.0,0.00011079,2]
[353136455,1739593848345,-180.66616947,0.00011079,2]
[353136456,1739593848356,-500.0,0.00011079,2]
[353136457,1739593848366,-500.0,0.00011079,2]
[353136458,1739593848376,-500.0,0.00011079,2]
[353136459,1739593848386,-500.0,0.00011079,2]
[353136460,1739593848395,-500.0,0.00011079,2]
[353136461,1739593848405,-500.0,0.00011079,2]
[353136462,1739593848415,-500.0,0.00011079,2]
[353136463,1739593848425,-500.0,0.00011079,2]
[353136464,1739593848436,-500.0,0.00011079,2]
[353136465,1739593848446,-500.0,0.00011079,2]
[353136466,1739593848456,-500.0,0.00011079,2]
[353136467,1739593848466,-500.0,0.00011079,2]
[353136468,1739593848478,-500.0,0.00011079,2]
[353136469,1739593848489,-500.0,0.00011079,2]
[353136470,1739593848499,-500.0,0.00011079,2]
[353136471,1739593848510,-500.0,0.00011079,2]
[353136472,1739593848522,-500.0,0.00011079,2]
[353136473,1739593848531,-500.0,0.00011079,2]
[353136474,1739593848543,-500.0,0.00011079,2]
[353136475,1739593848553,-500.0,0.00011079,2]
[353136476,1739593848565,-500.0,0.00011079,2]
[353136477,1739593848575,-500.0,0.00011079,2]
[353136478,1739593848586,-502.56987543,0.00011079,2]
[353136479,1739593848598,-500.0,0.00011079,2]
[353136480,1739593848609,-500.0,0.00011079,2]
[353136481,1739593848620,-500.0,0.00011079,2]
[353136482,1739593848630,-500.0,0.00011079,2]
[353136483,1739593848641,-500.0,0.00011079,2]
[353136484,1739593848652,-500.0,0.00011079,2]
[353136485,1739593848662,-500.0,0.00011079,2]
[353136486,1739593848672,-500.0,0.00011079,2]
[353136487,1739593848684,-583.39,0.00011079,2]
[353136488,1739593848695,-500.0,0.00011079,2]
[353136489,1739593848705,-500.0,0.00011079,2]
[353136490,1739593848716,-501.95689106,0.00011079,2]
[353136491,1739593848726,-500.0,0.00011079,2]
[353136492,1739593848737,-500.0,0.00011079,2]
[353136493,1739593848747,-500.0,0.00011079,2]
[353136494,1739593848758,-500.0,0.00011079,2]
[353136495,1739593848768,-500.0,0.00011079,2]
[353136496,1739593848778,-500.0,0.00011079,2]
[353136497,1739593848788,-500.0,0.00011079,2]
[353136498,1739593848798,-500.0,0.00011079,2]
[353136499,1739593848809,-516.5106614,0.00011079,2]
[353136500,1739593848820,-592.47,0.00011079,2]
[353136501,1739593848831,-500.0,0.00011079,2]
[353136502,1739593848841,-579.62629708,0.00011079,2]
[353136503,1739593848851,-500.0,0.00011079,2]
[353136504,1739593848862,-500.0,0.00011079,2]
[353136505,1739593848872,-500.0,0.00011079,2]
[353136506,1739593848882,-1584.78,0.00011079,2]
[353136507,1739593848893,-602.74,0.00011079,2]
[353136508,1739593848903,-509.81486679,0.00011079,2]
[353136509,1739593848914,-620.42236622,0.00011079,2]
[353136510,1739593848924,-512.03459044,0.00011079,2]
[353136511,1739593848934,-500.0,0.00011079,2]
[353136512,1739593848945,-500.0,0.00011079,2]
[353136513,1739593848955,-500.0,0.00011079,2]
[353136514,1739593848964,-500.0,0.00011079,2]
[353136515,1739593848974,-632.58,0.00011079,2]
[353136516,1739593848985,-500.0,0.00011079,2]
[353136517,1739593848995,-500.0,0.00011079,2]
[353136518,1739593849006,-500.0,0.00011079,2]
[353136519,1739593849016,-505.20903879,0.00011079,2]
[353136520,1739593849026,-500.0,0.00011079,2]
[353136521,1739593849036,-500.0,0.00011079,2]
[353136522,1739593849046,-512.0,0.00011079,2]
[353136523,1739593849056,-500.0,0.00011079,2]
[353136524,1739593849067,-508.19562705,0.00011079,2]
[353136525,1739593849077,-938.72,0.00011079,2]
[353136526,1739593849087,-500.0,0.00011079,2]
[353136527,1739593849098,-500.0,0.00011079,2]
[353136528,1739593849108,-500.0,0.00011079,2]
[353136529,1739593849119,-500.0,0.00011079,2]
[353136530,1739593849130,-504.81436604,0.00011079,2]
[353136531,1739593849141,-500.0,0.00011079,2]
[353136532,1739593849153,-500.0,0.00011079,2]
[353136533,1739593849165,-500.0,0.00011079,2]
[353136534,1739593849175,-552.77,0.00011079,2]
[353136535,1739593849185,-500.0,0.00011079,2]
[353136536,1739593849196,-500.0,0.00011079,2]
[353136537,1739593849206,-502.84179382,0.00011079,2]
[353136538,1739593849216,-500.0,0.00011079,2]
[353136539,1739593849226,-500.0,0.00011079,2]
[353136540,1739593849237,-505.774024,0.00011079,2]
[353136541,1739593849249,-500.0,0.00011079,2]
[353136542,1739593849260,-500.0,0.00011079,2]
[353136543,1739593849270,-500.0,0.00011079,2]
[353136544,1739593849280,-520.93665769,0.00011079,2]
[353136545,1739593849290,-500.0,0.00011079,2]
[353136546,1739593849301,-500.0,0.00011079,2]
[353136547,1739593849312,-500.0,0.00011079,2]
[353136548,1739593849336,-507.73304029,0.00011079,2]
[353136549,1739593849348,-500.0,0.00011079,2]
[353136550,1739593849359,-513.44129984,0.00011079,2]
[353136551,1739593849371,-500.0,0.00011079,2]
[353136552,1739593849383,-500.0,0.00011079,2]
[353136553,1739593849394,-289.25902866,0.00011079,2]
[353136554,1739593849405,-500.0,0.00011079,2]
[353136555,1739593849417,-500.0,0.00011079,2]
[353136556,1739593849427,-500.0,0.00011079,2]
[353136557,1739593849438,-500.0,0.00011079,2]
[353136558,1739593849451,-507.78055788,0.00011079,2]
[353136559,1739593849461,-500.0,0.00011079,2]
[353136560,1739593849472,-500.0,0.00011079,2]
[353136561,1739593849483,-500.0,0.00011079,2]
[353136562,1739593849494,-500.0,0.00011079,2]
[353136563,1739593849506,-500.0,0.00011079,2]
[353136564,1739593849517,-500.0,0.00011079,2]
[353136565,1739593849527,-500.0,0.00011079,2]
[353136566,1739593849538,-500.0,0.00011079,2]
[353136567,1739593849550,-500.0,0.00011079,2]
[353136568,1739593849561,-500.0,0.00011079,2]
[353136569,1739593849572,-500.0,0.00011079,2]
[353136570,1739593849584,-500.0,0.00011079,2]
[353136571,1739593849595,-500.0,0.00011079,2]
[353136572,1739593849605,-500.0,0.00011079,2]
[353136573,1739593849615,-500.0,0.00011079,2]
[353136574,1739593849626,-500.0,0.00011079,2]
[353136575,1739593849638,-500.0,0.00011079,2]
[353136576,1739593849648,-500.0,0.00011079,2]
[353136577,1739593849658,-500.0,0.00011079,2]
[353136578,1739593849668,-500.0,0.00011079,2]
[353136579,1739593849679,-500.0,0.00011079,2]
[353136580,1739593849689,-504.76491382,0.00011079,2]
[353136581,1739593849699,-500.0,0.00011079,2]
[353136582,1739593849708,-500.0,0.00011079,2]
[353136583,1739593849718,-455.91308099,0.00011079,2]
[353136584,1739593849743,-44.08691901,0.00011079,2]
[353136585,1739593849753,-256.68307125,0.00011079,2]
[353136586,1739593849779,-243.31692875,0.00011079,2]
[353136587,1739593849789,-500.0,0.00011079,2]
[353136588,1739593849799,-500.0,0.00011079,2]
[353136589,1739593849808,-500.0,0.00011079,2]
[353136590,1739593849824,-500.0,0.00011079,2]
[353136591,1739593849836,-500.0,0.00011079,2]
[353136592,1739593849847,-500.0,0.00011079,2]
[353136593,1739593849858,-500.0,0.00011079,2]
[353136594,1739593849869,-14.75621691,0.00011079,2]
[353136595,1739593849882,-485.24378309,0.00011079,2]
[353136596,1739593849894,-500.0,0.00011079,2]
[353136597,1739593849906,-500.0,0.00011079,2]
[353136598,1739593849916,-500.0,0.00011079,2]
[353136599,1739593849927,-500.0,0.0001108,2]
[353136600,1739593849937,-500.0,0.0001108,2]
[353136601,1739593849947,-35.67253425,0.0001108,2]
[353136602,1739593849967,-414.96730517,0.0001108,2]
[353136603,1739593849978,-500.0,0.0001108,2]
[353136604,1739593849988,-500.0,0.0001108,2]
[353136605,1739593849998,-500.0,0.0001108,2]
[353136606,1739593850008,-500.0,0.0001108,2]
[353136607,1739593850018,-500.0,0.0001108,2]
[353136608,1739593850028,-164.29034584,0.0001108,2]
[353136609,1739593850531,-387.89744464,0.00011079,2]
[353136610,1739593850543,-112.10255536,0.00011079,2]
[353136611,1739593850553,-201.21109931,0.00011079,2]
[353136612,1739593850565,-310.1201159,0.00011079,2]
[353136613,1739593850575,-171.84495426,0.0001108,2]
[353136614,1739593850588,-163.8646999,0.0001108,2]
[353136615,1739593850598,-491.93530009,0.0001108,2]
[353136616,1739593850609,-8.06469991,0.0001108,2]
[353136617,1739593850618,-500.0,0.0001108,2]
[353136618,1739593850628,-500.0,0.0001108,2]
[353136619,1739593850638,-500.0,0.0001108,2]
[353136620,1739593850649,-504.95141403,0.0001108,2]
[353136621,1739593850659,-500.0,0.0001108,2]
[353136622,1739593850670,-500.0,0.0001108,2]
[353136623,1739593850681,-500.0,0.0001108,2]
[353136624,1739593850691,-500.0,0.0001108,2]
[353136625,1739593850701,-500.0,0.0001108,2]
[353136626,1739593850711,-500.0,0.0001108,2]
[353136627,1739593850721,-500.0,0.0001108,2]
[353136628,1739593850733,-500.0,0.0001108,2]
[353136629,1739593850745,-500.0,0.0001108,2]
[353136630,1739593850754,-500.0,0.0001108,2]
[353136631,1739593850764,-500.0,0.0001108,2]
[353136632,1739593850774,-158.47287148,0.00011089,2]
[353136633,1739593850786,-300.0,0.00011098,2]
[353136634,1739593850797,-60934.56951569,0.00011099,2]
[353136635,1739593850810,-60934.56951565,0.00011099,2]
[353136636,1739593850819,-60934.56951565,0.00011099,2]
[353136637,1739593850828,-60934.56951565,0.00011099,2]
[353136638,1739593850838,-60934.56951565,0.00011099,2]
[353136639,1739593850847,-500.0,0.00011119,2]
[353136640,1739593850856,-500.0,0.00011123,2]
[353136641,1739593850867,-500.0,0.00011123,2]
[353136642,1739593850877,-748.21,0.00011123,2]
[353136643,1739593850889,-500.0,0.00011156,2]
[353136644,1739593850899,-2000.0,0.00011156,2]
[353136645,1739593850909,-200.0,0.00011156,2]
[353136646,1739593850920,-539.98,0.00011158,2]
[353136647,1739593850933,-500.0,0.00011158,2]
[353136648,1739593850944,-590.51,0.00011158,2]
[353136649,1739593850954,-500.0,0.00011158,2]
[353136650,1739593850964,-551.48,0.00011158,2]
[353136651,1739593850975,-500.0,0.00011158,2]
[353136652,1739593850986,-500.0,0.00011158,2]
[353136653,1739593850998,-535.16,0.00011158,2]
[353136654,1739593851009,-500.0,0.00011158,2]
[353136655,1739593851019,-500.0,0.00011158,2]
[353136656,1739593851029,-500.0,0.00011158,2]
[353136657,1739593851041,-500.0,0.00011158,2]
[353136658,1739593851051,-500.0,0.00011158,2]
[353136659,1739593851060,-500.0,0.00011158,2]
[353136660,1739593851069,-500.0,0.00011158,2]
[353136661,1739593851079,-500.0,0.00011158,2]
[353136662,1739593851088,-500.0,0.00011158,2]
[353136663,1739593851097,-500.0,0.00011158,2]
[353136664,1739593851107,-518.66,0.00011158,2]
[353136665,1739593851116,-500.0,0.00011158,2]
[353136666,1739593851126,-506.4,0.00011158,2]
[353136667,1739593851135,-500.0,0.00011158,2]
[353136668,1739593851144,-500.0,0.00011158,2]
[353136669,1739593851154,-500.0,0.00011158,2]
[353136670,1739593851163,-588.84,0.00011158,2]
[353136671,1739593851172,-517.38,0.00011158,2]
[353136672,1739593851182,-500.0,0.00011158,2]
[353136673,1739593851191,-500.0,0.00011158,2]
[353136674,1739593851200,-500.0,0.00011158,2]
[353136675,1739593851210,-500.0,0.00011158,2]
[353136676,1739593851220,-500.0,0.00011158,2]
[353136677,1739593851230,-500.0,0.00011158,2]
[353136678,1739593851239,-500.0,0.00011158,2]
[353136679,1739593851250,-703.86,0.00011158,2]
[353136680,1739593851260,-500.0,0.00011158,2]
[353136681,1739593851271,-500.0,0.00011158,2]
[353136682,1739593851281,-500.0,0.00011158,2]
[353136683,1739593851291,-500.0,0.00011158,2]
[353136684,1739593851301,-638.06,0.00011158,2]
[353136685,1739593851313,-500.0,0.00011158,2]
[353136686,1739593851335,-500.0,0.00011158,2]
[353136687,1739593851347,-623.24,0.00011158,2]
[353136688,1739593851357,-500.0,0.00011158,2]
[353136689,1739593851367,-500.0,0.00011158,2]
[353136690,1739593851377,-649.63,0.00011158,2]
[353136691,1739593851387,-717.18,0.00011158,2]
[353136692,1739593851397,-500.0,0.00011158,2]
[353136693,1739593851407,-500.0,0.00011158,2]
[353136694,1739593851416,-500.0,0.00011158,2]
[353136695,1739593851426,-500.0,0.00011158,2]
[353136696,1739593851436,-627.3,0.00011158,2]
[353136697,1739593851446,-500.0,0.00011158,2]
[353136698,1739593851456,-670.63,0.00011158,2]
[353136699,1739593851466,-500.0,0.00011158,2]
[353136700,1739593851475,-538.06,0.00011158,2]
[353136701,1739593851486,-500.0,0.00011158,2]
[353136702,1739593851495,-500.0,0.00011158,2]
[353136703,1739593851508,-664.48,0.00011158,2]
[353136704,1739593851519,-500.0,0.00011158,2]
[353136705,1739593851531,-713.61,0.00011158,2]
[353136706,1739593851541,-907.73,0.00011158,2]
[353136707,1739593851551,-504.30503193,0.00011158,2]
[353136708,1739593851563,-500.0,0.00011158,2]
[353136709,1739593851572,-500.0,0.00011158,2]
[353136710,1739593851583,-500.0,0.00011158,2]
[353136711,1739593851595,-629.8,0.00011158,2]
[353136712,1739593851605,-1129.23,0.00011158,2]
[353136713,1739593851615,-500.0,0.00011158,2]
[353136714,1739593851626,-627.99,0.00011158,2]
[353136715,1739593851636,-509.07,0.00011158,2]
[353136716,1739593851646,-516.73749086,0.00011158,2]
[353136717,1739593851658,-997.57,0.00011158,2]
[353136718,1739593851669,-500.0,0.00011158,2]
[353136719,1739593851680,-1290.21,0.00011158,2]
[353136720,1739593851691,-515.72,0.00011158,2]
[353136721,1739593851700,-517.65,0.00011158,2]
[353136722,1739593851711,-569.53,0.00011158,2]
[353136723,1739593851721,-1019.14,0.00011158,2]
[353136724,1739593851731,-576.25,0.00011158,2]
[353136725,1739593851741,-1550.29,0.00011158,2]
[353136726,1739593851751,-500.0,0.00011158,2]
[353136727,1739593851762,-500.0,0.00011158,2]
[353136728,1739593851771,-740.86,0.00011158,2]
[353136729,1739593851781,-950.97,0.00011158,2]
[353136730,1739593851792,-1108.56,0.00011158,2]
[353136731,1739593851801,-2275.7,0.00011158,2]
[353136732,1739593851810,-982.57,0.00011158,2]
[353136733,1739593851819,-500.0,0.00011158,2]
[353136734,1739593851829,-500.0,0.00011158,2]
[353136735,1739593851839,-1285.66,0.00011158,2]
[353136736,1739593851849,-500.0,0.00011158,2]
[353136737,1739593851860,-1414.18,0.00011158,2]
[353136738,1739593851870,-2541.83,0.00011158,2]
[353136739,1739593851879,-500.0,0.00011158,2]
[353136740,1739593851888,-1146.51,0.00011158,2]
[353136741,1739593851898,-1245.83,0.00011158,2]
[353136742,1739593851908,-558.71,0.00011158,2]
[353136743,1739593851918,-766.38,0.00011158,2]
[353136744,1739593851928,-500.0,0.00011158,2]
[353136745,1739593851938,-500.0,0.00011158,2]
[353136746,1739593851948,-897.07,0.00011158,2]
[353136747,1739593851958,-500.0,0.00011158,2]
[353136748,1739593851968,-1839.81,0.00011158,2]
[353136749,1739593851978,-859.29,0.00011158,2]
[353136750,1739593851987,-500.0,0.00011158,2]
[353136751,1739593851997,-726.12,0.00011158,2]
[353136752,1739593852006,-601.15,0.00011158,2]
[353136753,1739593852016,-500.0,0.00011158,2]
[353136754,1739593852025,-500.0,0.00011159,2]
[353136755,1739593852035,-701.16,0.00011159,2]
[353136756,1739593852045,-500.0,0.00011159,2]
[353136757,1739593852055,-500.0,0.00011159,2]
[353136758,1739593852067,-837.21,0.00011159,2]
[353136759,1739593852077,-500.0,0.00011159,2]
[353136760,1739593852086,-500.0,0.00011159,2]
[353136761,1739593852095,-500.0,0.00011159,2]
[353136762,1739593852105,-500.0,0.00011159,2]
[353136763,1739593852114,-500.0,0.00011159,2]
[353136764,1739593852124,-603.94,0.00011159,2]
[353136765,1739593852134,-500.0,0.00011159,2]
[353136766,1739593852143,-500.0,0.00011159,2]
[353136767,1739593852153,-500.0,0.00011159,2]
[353136768,1739593852163,-500.0,0.00011159,2]
[353136769,1739593852173,-602.25,0.00011159,2]
[353136770,1739593852183,-500.0,0.00011159,2]
[353136771,1739593852193,-689.49,0.00011159,2]
[353136772,1739593852202,-500.0,0.00011159,2]
[353136773,1739593852211,-606.28,0.00011159,2]
[353136774,1739593852220,-500.0,0.00011159,2]
[353136775,1739593852230,-546.69,0.00011159,2]
[353136776,1739593852239,-500.0,0.00011159,2]
[353136777,1739593852249,-500.0,0.00011159,2]
[353136778,1739593852259,-275.44219474,0.00011159,2]
[353136779,1739593852269,-500.0,0.00011159,2]
[353136780,1739593852279,-500.0,0.00011159,2]
[353136781,1739593852289,-500.0,0.00011159,2]
[353136782,1739593852298,-722.52,0.00011159,2]
[353136783,1739593852309,-500.0,0.00011159,2]
[353136784,1739593852319,-500.0,0.00011159,2]
[353136785,1739593852329,-500.0,0.00011159,2]
[353136786,1739593852339,-500.0,0.00011159,2]
[353136787,1739593852349,-500.0,0.00011159,2]
[353136788,1739593852359,-500.0,0.00011159,2]
[353136789,1739593852369,-500.0,0.00011159,2]
[353136790,1739593852379,-500.0,0.00011159,2]
[353136791,1739593852392,-500.0,0.00011159,2]
[353136792,1739593852407,-500.0,0.00011159,2]
[353136793,1739593852420,-548.7,0.00011159,2]
[353136794,1739593852430,-500.0,0.00011159,2]
[353136795,1739593852440,-825.31,0.00011159,2]
[353136796,1739593852451,-504.5,0.00011159,2]
[353136797,1739593852461,-500.0,0.00011159,2]
[353136798,1739593852471,-500.0,0.00011159,2]
[353136799,1739593852480,-500.0,0.00011159,2]
[353136800,1739593852490,-500.0,0.00011159,2]
[353136801,1739593852500,-500.0,0.00011159,2]
[353136802,1739593852514,-500.0,0.00011159,2]
[353136803,1739593852524,-631.45,0.00011159,2]
[353136804,1739593852534,-523.67,0.00011159,2]
[353136805,1739593852545,-627.76,0.00011159,2]
[353136806,1739593852555,-599.75,0.00011159,2]
[353136807,1739593852566,-500.0,0.00011159,2]
[353136808,1739593852576,-1025.65,0.00011159,2]
[353136809,1739593852590,-500.0,0.00011159,2]
[353136810,1739593852600,-500.0,0.00011159,2]
[353136811,1739593852611,-500.0,0.00011159,2]
[353136812,1739593852621,-500.0,0.00011159,2]
[353136813,1739593852631,-582.559622,0.00011159,2]
[353136814,1739593852641,-740.5,0.00011159,2]
[353136815,1739593852651,-500.0,0.00011159,2]
[353136816,1739593852661,-742.28,0.00011159,2]
[353136817,1739593852671,-633.18,0.00011159,2]
[353136818,1739593852681,-555.04,0.00011159,2]
[353136819,1739593852691,-500.0,0.00011159,2]
[353136820,1739593852702,-531.86,0.00011159,2]
[353136821,1739593852714,-1565.45,0.00011159,2]
[353136822,1739593852724,-943.37,0.00011159,2]
[353136823,1739593852734,-628.53,0.00011159,2]
[353136824,1739593852744,-515.13508,0.00011159,2]
[353136825,1739593852756,-878.08,0.00011159,2]
[353136826,1739593852766,-500.0,0.00011159,2]
[353136827,1739593852776,-500.0,0.00011159,2]
[353136828,1739593852786,-500.0,0.00011159,2]
[353136829,1739593852796,-1228.85,0.00011159,2]
[353136830,1739593852805,-634.48,0.00011159,2]
[353136831,1739593852818,-772.03,0.00011159,2]
[353136832,1739593852827,-500.0,0.00011159,2]
[353136833,1739593852838,-500.0,0.00011159,2]
[353136834,1739593852847,-5419.81,0.00011159,2]
[353136835,1739593852859,-500.0,0.00011159,2]
[353136836,1739593852870,-835.28,0.00011159,2]
[353136837,1739593852879,-1068.34,0.00011159,2]
[353136838,1739593852889,-527.72,0.00011159,2]
[353136839,1739593852899,-500.0,0.00011159,2]
[353136840,1739593852909,-500.0,0.00011159,2]
[353136841,1739593852919,-1039.68,0.00011159,2]
[353136842,1739593852929,-944.97,0.00011159,2]
[353136843,1739593852939,-1053.33,0.00011159,2]
[353136844,1739593852948,-772.32,0.00011159,2]
[353136845,1739593852959,-1220.64,0.00011159,2]
[353136846,1739593852969,-828.77,0.00011159,2]
[353136847,1739593852979,-986.44,0.00011159,2]
[353136848,1739593852990,-500.0,0.00011159,2]
[353136849,1739593853000,-500.0,0.00011159,2]
[353136850,1739593853009,-945.07,0.00011159,2]
[353136851,1739593853019,-1560.12,0.00011159,2]
[353136852,1739593853029,-699.85,0.00011159,2]
[353136853,1739593853039,-670.15,0.00011159,2]
[353136854,1739593853050,-873.52,0.00011159,2]
[353136855,1739593853060,-920.09,0.00011159,2]
[353136856,1739593853070,-1432.47,0.00011159,2]
[353136857,1739593853080,-500.0,0.00011159,2]
[353136858,1739593853090,-1295.6,0.00011159,2]
[353136859,1739593853099,-1315.69,0.00011159,2]
[353136860,1739593853109,-1251.67,0.00011159,2]
[353136861,1739593853119,-682.81,0.00011159,2]
[353136862,1739593853129,-3544.78,0.00011159,2]
[353136863,1739593853139,-802.07,0.00011159,2]
[353136864,1739593853149,-725.93,0.00011159,2]
[353136865,1739593853159,-803.9,0.00011159,2]
[353136866,1739593853168,-500.0,0.00011159,2]
[353136867,1739593853178,-517.84,0.00011159,2]
[353136868,1739593853187,-1572.6,0.00011159,2]
[353136869,1739593853198,-1696.23,0.00011159,2]
[353136870,1739593853208,-783.89,0.00011159,2]
[353136871,1739593853218,-500.0,0.00011159,2]
[353136872,1739593853228,-963.56,0.00011159,2]
[353136873,1739593853238,-583.4,0.00011159,2]
[353136874,1739593853248,-567.02,0.00011159,2]
[353136875,1739593853257,-1145.2,0.00011159,2]
[353136876,1739593853267,-500.0,0.00011159,2]
[353136877,1739593853277,-500.0,0.00011159,2]
[353136878,1739593853287,-500.0,0.00011159,2]
[353136879,1739593853297,-618.5,0.00011159,2]
[353136880,1739593853307,-1111.54,0.00011159,2]
[353136881,1739593853318,-551.89,0.0001116,2]
[353136882,1739593853328,-777.3,0.0001116,2]
[353136883,1739593853339,-526.21,0.0001116,2]
[353136884,1739593853350,-500.0,0.0001116,2]
[353136885,1739593853360,-500.0,0.0001116,2]
[353136886,1739593853370,-707.69,0.0001116,2]
[353136887,1739593853380,-500.0,0.0001116,2]
[353136888,1739593853389,-500.0,0.0001116,2]
[353136889,1739593853399,-541.68837286,0.0001116,2]
[353136890,1739593853409,-500.0,0.0001116,2]
[353136891,1739593853419,-500.0,0.0001116,2]
[353136892,1739593853428,-500.0,0.0001116,2]
[353136893,1739593853438,-876.51,0.0001116,2]
[353136894,1739593853448,-500.0,0.0001116,2]
[353136895,1739593853457,-838.6,0.0001116,2]
[353136896,1739593853467,-500.0,0.0001116,2]
[353136897,1739593853477,-976.16,0.0001116,2]
[353136898,1739593853488,-1298.92,0.0001116,2]
[353136899,1739593853498,-1055.91,0.0001116,2]
[353136900,1739593853518,-1036.5,0.0001116,2]
[353136901,1739593853528,-1315.67,0.0001116,2]
[353136902,1739593853537,-1469.47,0.0001116,2]
[353136903,1739593853547,-3773.37,0.0001116,2]
[353136904,1739593853559,-915.3,0.0001116,2]
[353136905,1739593853570,-907.63,0.0001116,2]
[353136906,1739593853581,-1916.85,0.0001116,2]
[353136907,1739593853592,-500.0,0.0001116,2]
[353136908,1739593853604,-951.13,0.0001116,2]
[353136909,1739593853614,-1099.6,0.0001116,2]
[353136910,1739593853624,-1497.05,0.0001116,2]
[353136911,1739593853633,-1000.0,0.0001116,2]
[353136912,1739593853644,-629.20196299,0.00011161,3]
[353136913,1739593853654,-159078.50882896,0.00011161,3]
[353136914,1739593853663,-594.39,0.00011161,2]
[353136915,1739593853673,-500.0,0.00011161,2]
[353136916,1739593853683,-275.49,0.00011161,2]
[353136917,1739593853693,-500.0,0.00011161,2]
[353136918,1739593853703,-634.18466499,0.00011161,2]
[353136919,1739593853712,-500.0,0.00011161,2]
[353136920,1739593853721,-183.72,0.00011161,2]
[353136921,1739593853731,-500.0,0.00011161,2]
[353136922,1739593853741,-500.0,0.00011161,2]
[353136923,1739593853751,-500.0,0.00011161,2]
[353136924,1739593853760,-500.0,0.00011161,2]
[353136925,1739593853771,-500.0,0.00011161,2]
[353136926,1739593853783,-500.0,0.00011161,2]
[353136927,1739593853793,-500.0,0.00011161,2]
[353136928,1739593853803,-500.0,0.00011161,2]
[353136929,1739593853813,-500.0,0.00011161,2]